Workbook

Sheet Synthèse
B1: REGLEMENTS EUROPEENS
B5: Paiements des prestations en espèces d'incapacité temporaire (assurances
B6: ="accident du travail-maladie professionnelle) en "&Détaillé!$U$2 -> accident du travail-maladie professionnelle) en 2016
C8: Résidence hors de l'Etat compétent | F8: Séjour temporaire-Transfert de résidence autorisé | I8: Total des
B9: Pays | C9: Nombre de | D9: Nombre de jours | E9: Montant | F9: Nombre de | G9: Nombre de jours | H9: Montant | I9: montants
C10: bénéficiaires | D10: indemnisés | E10: (euros) | F10: bénéficiaires | G10: indemnisés | H10: (euros) | I10: (euros)
B11: Allemagne | C11: 16 | D11: 1101 | E11: 63578.93 | F11: 53 | G11: 600 | H11: 31832.95 | I11: =E11+H11 -> 95411.88
B12: Autriche | C12: 0 | D12: 0 | E12: 0 | F12: 23 | G12: 276 | H12: 21216.25 | I12: =E12+H12 -> 21216.25
B13: Belgique | C13: 136 | D13: 10803 | E13: 572881.78 | F13: 24 | G13: 280 | H13: 13590.73 | I13: =E13+H13 -> 586472.51 | K13: 1 | L13: =INDEX($B$11:$I$41,MATCH(LARGE($I$11:$I$41,$K13),$I$11:$I$41,0),1) -> Portugal | M13: =INDEX($B$11:$I$41,MATCH(LARGE($I$11:$I$41,$K13),$I$11:$I$41,0),8) -> 1692809.01 | N13: =MAX(I11:I41)*1.1 -> 1862089.911
B14: Bulgarie | C14: 1 | D14: 8 | E14: 330.8 | F14: 6 | G14: 57 | H14: 4247.28 | I14: 4578.08 | K14: =K13+1 -> 2 | L14: =INDEX($B$11:$I$41,MATCH(LARGE($I$11:$I$41,$K14),$I$11:$I$41,0),1) -> Belgique | M14: =INDEX($B$11:$I$41,MATCH(LARGE($I$11:$I$41,$K14),$I$11:$I$41,0),8) -> 586472.51
B15: Chypre | C15: 2 | D15: 24 | E15: 1155.6 | F15: 1 | G15: 7 | H15: 597 | I15: 1752.6 | K15: =K14+1 -> 3 | L15: =INDEX($B$11:$I$41,MATCH(LARGE($I$11:$I$41,$K15),$I$11:$I$41,0),1) -> Espagne | M15: =INDEX($B$11:$I$41,MATCH(LARGE($I$11:$I$41,$K15),$I$11:$I$41,0),8) -> 445665.61
B16: Croatie | C16: 0 | D16: 0 | E16: 0 | F16: 12 | G16: 166 | H16: 8739.83 | I16: 8739.83 | K16: 4 | L16: =INDEX($B$11:$I$41,MATCH(LARGE($I$11:$I$41,$K16),$I$11:$I$41,0),1) -> Italie | M16: =INDEX($B$11:$I$41,MATCH(LARGE($I$11:$I$41,$K16),$I$11:$I$41,0),8) -> 348394.63
B17: Danemark | C17: 0 | D17: 0 | E17: 0 | F17: 0 | G17: 0 | H17: 0 | I17: 0 | K17: 5 | L17: =INDEX($B$11:$I$41,MATCH(LARGE($I$11:$I$41,$K17),$I$11:$I$41,0),1) -> Allemagne | M17: =INDEX($B$11:$I$41,MATCH(LARGE($I$11:$I$41,$K17),$I$11:$I$41,0),8) -> 95411.88
B18: Espagne | C18: 59 | D18: 2798 | E18: 125908.06 | F18: =395+1 -> 396 | G18: =5832+8 -> 5840 | H18: =319369.07+388.48 -> 319757.55 | I18: =E18+H18 -> 445665.61
B19: Estonie | C19: 0 | D19: 0 | E19: 0 | F19: 0 | G19: 0 | H19: 0 | I19: 0
B20: Finlande | C20: 0 | D20: 0 | E20: 0 | F20: 0 | G20: 0 | H20: 0 | I20: 0
B21: Grèce | C21: 1 | D21: 9 | E21: 670.41 | F21: 46 | G21: 496 | H21: 27651.93 | I21: 28322.34
B22: Hongrie | C22: 27 | D22: 1023 | E22: 37711.08 | F22: 4 | G22: 58 | H22: 2897.83 | I22: 40608.91
B23: Irlande | C23: 0 | D23: 0 | E23: 0 | F23: 8 | G23: 76 | H23: 5267.25 | I23: 5267.25
B24: Islande | C24: 1 | D24: 23 | E24: 1230 | F24: 1 | G24: 19 | H24: 683.81 | I24: 1913.81
B25: Italie | C25: 72 | D25: 4132 | E25: 188273.94 | F25: 181 | G25: 2802 | H25: 160120.69 | I25: 348394.63
B26: Lettonie | C26: 1 | D26: 150 | E26: 6496.72 | F26: 0 | G26: 0 | H26: 0 | I26: 6496.72
B27: Liechtenstein | C27: 0 | D27: 0 | E27: 0 | F27: 0 | G27: 0 | H27: 0 | I27: 0
B28: Lituanie | C28: 1 | D28: 29 | E28: 951.03 | F28: 1 | G28: 7 | H28: 524.09 | I28: 1475.12
B29: Luxembourg | C29: 2 | D29: 12 | E29: 775.66 | F29: 4 | G29: 64 | H29: 3107.03 | I29: 3882.69
B30: Malte | C30: 0 | D30: 0 | E30: 0 | F30: 3 | G30: 25 | H30: 1211.5 | I30: 1211.5
B31: Norvège | C31: 0 | D31: 0 | E31: 0 | F31: 0 | G31: 0 | H31: 0 | I31: 0
B32: Pays-Bas | C32: 1 | D32: 81 | E32: 5644.8 | F32: 9 | G32: 97 | H32: 3875.41 | I32: 9520.21
B33: Pologne | C33: 38 | D33: 869 | E33: 36492.88 | F33: 39 | G33: 829 | H33: 44247.51 | I33: 80740.39
B34: Portugal | C34: 36 | D34: 1341 | E34: 54159.6 | F34: 1213 | G34: 29528 | H34: 1638649.41 | I34: 1692809.01
B35: République tchèque | C35: 0 | D35: 0 | E35: 0 | F35: 7 | G35: 116 | H35: 6306.99 | I35: 6306.99
B36: Roumanie | C36: 1 | D36: 20 | E36: 943 | F36: 21 | G36: 464 | H36: 24945.89 | I36: 25888.89
B37: Royaume-Uni | C37: 1 | D37: 392 | E37: 20140.96 | F37: 28 | G37: 197 | H37: 11411.49 | I37: 31552.45
B38: Slovaquie | C38: 3 | D38: 139 | E38: 5071.4 | F38: 2 | G38: 33 | H38: 1702.52 | I38: 6773.92
B39: Slovénie | C39: 0 | D39: 0 | E39: 0 | F39: 1 | G39: 23 | H39: 1261.32 | I39: 1261.32
B40: Suède | C40: 0 | D40: 0 | E40: 0 | F40: 2 | G40: 12 | H40: 815.88 | I40: 815.88
B41: Suisse | C41: 6 | D41: 123 | E41: 6550.55 | F41: 15 | G41: 110 | H41: 4888.51 | I41: =E41+H41 -> 11439.06
B42: ="Total "&Détaillé!$U$2 -> Total 2016 | C42: =SUM(C11:C41) -> 405 | D42: =SUM(D11:D41) -> 23077 | E42: =SUM(E11:E41) -> 1128967.2 | F42: 2100 | G42: 42182 | H42: 2339550.65 | I42: =IF(SUM(I11:I41)=E42+H42,SUM(I11:I41),"Faux") -> 3468517.85
B43: ="Total "&Détaillé!$U$2-1 -> Total 2015 | C43: 425 | D43: 24602 | E43: 1161642.13 | F43: 2252 | G43: 48243 | H43: 2601858.73 | I43: =E43+H43 -> 3763500.86
B44: % évolution | C44: =IF(C43<>0,(C42-C43)/C43*100,"-") -> -4.705882353 | D44: =IF(D43<>0,(D42-D43)/D43*100,"-") -> -6.198683034 | E44: -2.812822397 | F44: -6.74955595 | G44: -12.56348071 | H44: -10.08156504 | I44: =IF(I43<>0,(I42-I43)/I43*100,"-") -> -7.83799502
A51: Evolution sur 10 ans des prestations en espèces d'incapacité temporaire (assurances AT-MP)
B53: Résidence hors de l'Etat compétent | E53: Séjour temporaire / Transfert de résidence autorisé | H53: Total
B54: Nombre de | C54: Nombre | D54: Montant | E54: Nombre de | F54: Nombre | G54: Montant | H54: Nombre de | I54: Montant | J54: %
A55: Année | B55: béné | C55: de jours | D55: (euros) | E55: béné | F55: de jours | G55: (euros) | H55: béné | I55: (euros) | J55: évolu-
B56: ficiaires | C56: indemnisés | E56: ficiaires | F56: indemnisés | H56: ficiaires | J56: tion
A57: 2007 | B57: 243 | C57: 10897 | D57: 454166.36 | E57: 2325 | F57: 62837 | G57: 3168186.83 | H57: =B57+E57 -> 2568 | I57: =G57+D57 -> 3622353.19
A58: 2008 | B58: 313 | C58: 16336 | D58: 742938.42 | E58: 2500 | F58: 62206 | G58: 3068767.38 | H58: =B58+E58 -> 2813 | I58: =G58+D58 -> 3811705.8 | J58: =(I58-I57)/I57*100 -> 5.227337039
A59: 2009 | B59: 272 | C59: 19277 | D59: 875996.38 | E59: 2497 | F59: 61482 | G59: 3077703.1 | H59: 2769 | I59: =G59+D59 -> 3953699.48 | J59: 3.725200408
A60: 2010 | B60: 280 | C60: 21627 | D60: 915794.11 | E60: 2307 | F60: 57673 | G60: 2862705.38 | H60: 2587 | I60: 3778499.49 | J60: -4.431292537
A61: 2011 | B61: 404 | C61: 23275 | D61: 1084726.47 | E61: 2487 | F61: 58955 | G61: 3152487.52 | H61: 2891 | I61: 4237213.99 | J61: 12.14012338
A62: 2012 | B62: 324 | C62: 19755 | D62: 1037648.88 | E62: 2150 | F62: 48452 | G62: 2593758.36 | H62: 2474 | I62: 3631407.24 | J62: -14.29728948
A63: 2013 | B63: 409 | C63: 23818 | D63: 1161712.91 | E63: 2070 | F63: 45700 | G63: 2368410.36 | H63: 2479 | I63: 3530123.27 | J63: -2.789110758
A64: 2014 | B64: 487 | C64: 26863 | D64: 1141745.55 | E64: 1950 | F64: 39256 | G64: 2242393.62 | H64: 2437 | I64: 3384139.17 | J64: -4.135382502
A65: 2015 | B65: 425 | C65: 24602 | D65: 1161642.13 | E65: 2252 | F65: 48243 | G65: 2601858.73 | H65: 2677 | I65: 3763500.86 | J65: 11.20999081
A66: 2016 | B66: 405 | C66: 23077 | D66: 1128967.2 | E66: 2100 | F66: 42182 | G66: 2339550.65 | H66: 2505 | I66: 3468517.85 | J66: -7.83799502

Sheet Détaillé
A1: REGLEMENTS EUROPEENS | T1: 1 | U1: =INDEX(ListePays,$T$1,2) -> 0
U2: 2016
O3: Aller directement vers :
A5: Paiements des prestations en espèces d'incapacité temporaire
A6: (assurances AT-MP)
C8: Résidence hors de l'Etat compétent | F8: Séjour temporaire-Transfert autorisé | I8: Total des
A9: Pays | B9: Régime | C9: Nombre de | D9: Nombre de jours | E9: Montant | F9: Nombre de | G9: Nombre de jours | H9: Montant | I9: montants
C10: bénéficiaires | D10: indemnisés | E10: (euros) | F10: bénéficiaires | G10: indemnisés | H10: (euros) | I10: (euros)
B11: Général | C11: 16 | D11: 1101 | E11: 63578.93 | F11: 53 | G11: 600 | H11: 31832.95 | I11: =E11+H11 -> 95411.88
B12: Agricole | C12: 0 | D12: 0 | E12: 0 | F12: 0 | G12: 0 | H12: 0 | I12: =E12+H12 -> 0
A13: Allemagne | B13: Minier | C13: 0 | D13: 0 | E13: 0 | F13: 0 | G13: 0 | H13: 0 | I13: =E13+H13 -> 0
B14: Total 2016 | C14: =SUM(C11:C13) -> 16 | D14: 1101 | E14: 63578.93 | F14: 53 | G14: 600 | H14: 31832.95 | I14: =IF($E14+$H14=SUM($I11:$I13), $E14+$H14,"FAUX") -> 95411.88
B15: Total 2015 | C15: 18 | D15: 1036 | E15: 47030.24 | F15: 51 | G15: 808 | H15: 43597.89 | I15: =E15+H15 -> 90628.13
B16: % d'évolution | C16: =IF(C15<> 0,((C14-C15)/C15*100)," - ") -> -11.11111111 | D16: =IF(D15<>0,((D14-D15)/D15*100)," - ") -> 6.274131274 | E16: 35.18733904 | F16: 3.921568627 | G16: -25.74257426 | H16: -26.98511327 | I16: 5.278438383
B17: Général | C17: 0 | D17: 0 | E17: 0 | F17: 23 | G17: 276 | H17: 21216.25 | I17: =E17+H17 -> 21216.25
B18: Agricole | C18: 0 | D18: 0 | E18: 0 | F18: 0 | G18: 0 | H18: 0 | I18: =E18+H18 -> 0
A19: Autriche | B19: Minier | C19: 0 | D19: 0 | E19: 0 | F19: 0 | G19: 0 | H19: 0 | I19: =E19+H19 -> 0
B20: Total 2016 | C20: =SUM(C17:C19) -> 0 | D20: 0 | E20: 0 | F20: 23 | G20: 276 | H20: 21216.25 | I20: =IF($E20+$H20=SUM($I17:$I19), $E20+$H20,"FAUX") -> 21216.25
B21: Total 2015 | C21: 1 | D21: 15 | E21: 930 | F21: 15 | G21: 112 | H21: 7171.7 | I21: =E21+H21 -> 8101.7
B22: % d'évolution | C22: =IF(C21<> 0,((C20-C21)/C21*100)," - ") -> -100 | D22: =IF(D21<>0,((D20-D21)/D21*100)," - ") -> -100 | E22: -100 | F22: 53.33333333 | G22: 146.4285714 | H22: 195.8329266 | I22: 161.8740511
B23: Général | C23: 129 | D23: 10177 | E23: 569949.18 | F23: 24 | G23: 280 | H23: 13590.73 | I23: =E23+H23 -> 583539.91
B24: Agricole | C24: 7 | D24: 626 | E24: 2932.6 | F24: 0 | G24: 0 | H24: 0 | I24: =E24+H24 -> 2932.6
A25: Belgique | B25: Minier | C25: 0 | D25: 0 | E25: 0 | F25: 0 | G25: 0 | H25: 0 | I25: =E25+H25 -> 0
B26: Total 2016 | C26: =SUM(C23:C25) -> 136 | D26: 10803 | E26: 572881.78 | F26: 24 | G26: 280 | H26: 13590.73 | I26: =IF($E26+$H26=SUM($I23:$I25), $E26+$H26,"FAUX") -> 586472.51
B27: Total 2015 | C27: 153 | D27: 11302 | E27: 558727.81 | F27: 40 | G27: 551 | H27: 28244.74 | I27: =E27+H27 -> 586972.55
B28: % d'évolution | C28: =IF(C27<> 0,((C26-C27)/C27*100)," - ") -> -11.11111111 | D28: =IF(D27<>0,((D26-D27)/D27*100)," - ") -> -4.415147761 | E28: 2.533249598 | F28: -40 | G28: -49.18330309 | H28: -51.88226197 | I28: -0.08518967369
B29: Général | C29: 1 | D29: 8 | E29: 330.8 | F29: 5 | G29: 54 | H29: 4117.38 | I29: =E29+H29 -> 4448.18
B30: Agricole | C30: 0 | D30: 0 | E30: 0 | F30: 1 | G30: 3 | H30: 129.9 | I30: =E30+H30 -> 129.9
A31: Bulgarie | B31: Minier | C31: 0 | D31: 0 | E31: 0 | F31: 0 | G31: 0 | H31: 0 | I31: =E31+H31 -> 0
B32: Total 2016 | C32: =SUM(C29:C31) -> 1 | D32: 8 | E32: 330.8 | F32: 6 | G32: 57 | H32: 4247.28 | I32: =IF($E32+$H32=SUM($I29:$I31), $E32+$H32,"FAUX") -> 4578.08
B33: Total 2015 | C33: 1 | D33: 12 | E33: 592.32 | F33: 6 | G33: 195 | H33: 5624.1 | I33: =E33+H33 -> 6216.42
B34: % d'évolution | C34: =IF(C33<> 0,((C32-C33)/C33*100)," - ") -> 0 | D34: =IF(D33<>0,((D32-D33)/D33*100)," - ") -> -33.33333333 | E34: -44.15180983 | F34: 0 | G34: -70.76923077 | H34: -24.48071691 | I34: -26.35504036
B35: Général | C35: 2 | D35: 24 | E35: 1155.6 | F35: 1 | G35: 7 | H35: 597 | I35: =E35+H35 -> 1752.6
B36: Agricole | C36: 0 | D36: 0 | E36: 0 | F36: 0 | G36: 0 | H36: 0 | I36: =E36+H36 -> 0
A37: Chypre | B37: Minier | C37: 0 | D37: 0 | E37: 0 | F37: 0 | G37: 0 | H37: 0 | I37: =E37+H37 -> 0
B38: Total 2016 | C38: =SUM(C35:C37) -> 2 | D38: 24 | E38: 1155.6 | F38: 1 | G38: 7 | H38: 597 | I38: =IF($E38+$H38=SUM($I35:$I37), $E38+$H38,"FAUX") -> 1752.6
B39: Total 2015 | C39: 0 | D39: 0 | E39: 0 | F39: 1 | G39: 4 | H39: 116.76 | I39: =E39+H39 -> 116.76
B40: % d'évolution | C40: =IF(C39<> 0,((C38-C39)/C39*100)," - ") -> - | D40: =IF(D39<>0,((D38-D39)/D39*100)," - ") -> - | E40: - | F40: 0 | G40: 75 | H40: 411.3052415 | I40: 1401.027749
B41: Général | C41: 0 | D41: 0 | E41: 0 | F41: 12 | G41: 166 | H41: 8739.83 | I41: =E41+H41 -> 8739.83
B42: Agricole | C42: 0 | D42: 0 | E42: 0 | F42: 0 | G42: 0 | H42: 0 | I42: =E42+H42 -> 0
A43: Croatie | B43: Minier | C43: 0 | D43: 0 | E43: 0 | F43: 0 | G43: 0 | H43: 0 | I43: =E43+H43 -> 0
B44: Total 2016 | C44: =SUM(C41:C43) -> 0 | D44: 0 | E44: 0 | F44: 12 | G44: 166 | H44: 8739.83 | I44: =IF($E44+$H44=SUM($I41:$I43), $E44+$H44,"FAUX") -> 8739.83
B45: Total 2015 | C45: 0 | D45: 0 | E45: 0 | F45: 24 | G45: 404 | H45: 19677.27 | I45: =E45+H45 -> 19677.27
B46: % d'évolution | C46: =IF(C45<> 0,((C44-C45)/C45*100)," - ") -> - | D46: =IF(D45<>0,((D44-D45)/D45*100)," - ") -> - | E46: - | F46: -50 | G46: -58.91089109 | H46: -55.58413337 | I46: -55.58413337
B47: Général | C47: 0 | D47: 0 | E47: 0 | F47: 0 | G47: 0 | H47: 0 | I47: =E47+H47 -> 0
B48: Agricole | C48: 0 | D48: 0 | E48: 0 | F48: 0 | G48: 0 | H48: 0 | I48: =E48+H48 -> 0
A49: Danemark | B49: Minier | C49: 0 | D49: 0 | E49: 0 | F49: 0 | G49: 0 | H49: 0 | I49: =E49+H49 -> 0
B50: Total 2016 | C50: =SUM(C47:C49) -> 0 | D50: 0 | E50: 0 | F50: 0 | G50: 0 | H50: 0 | I50: =IF($E50+$H50=SUM($I47:$I49), $E50+$H50,"FAUX") -> 0
B51: Total 2015 | C51: 0 | D51: 0 | E51: 0 | F51: 4 | G51: 82 | H51: 4093.86 | I51: =E51+H51 -> 4093.86
B52: % d'évolution | C52: =IF(C51<> 0,((C50-C51)/C51*100)," - ") -> - | D52: =IF(D51<>0,((D50-D51)/D51*100)," - ") -> - | E52: - | F52: -100 | G52: -100 | H52: -100 | I52: -100
B53: Général | C53: 21 | D53: 367 | E53: 16431.4 | F53: =385+1 -> 386 | G53: =5545+8 -> 5553 | H53: =310333.3+388.48 -> 310721.78 | I53: =E53+H53 -> 327153.18
B54: Agricole | C54: 38 | D54: 2431 | E54: 109476.66 | F54: 10 | G54: 287 | H54: 9035.77 | I54: =E54+H54 -> 118512.43
A55: Espagne | B55: Minier | C55: 0 | D55: 0 | E55: 0 | F55: 0 | G55: 0 | H55: 0 | I55: =E55+H55 -> 0
B56: Total 2016 | C56: =SUM(C53:C55) -> 59 | D56: 2798 | E56: 125908.06 | F56: 396 | G56: 5840 | H56: 319757.55 | I56: =IF($E56+$H56=SUM($I53:$I55), $E56+$H56,"FAUX") -> 445665.61
B57: Total 2015 | C57: 55 | D57: 2540 | E57: 127036.21 | F57: 438 | G57: 7015 | H57: 419164.17 | I57: =E57+H57 -> 546200.38
B58: % d'évolution | C58: =IF(C57<> 0,((C56-C57)/C57*100)," - ") -> 7.272727273 | D58: =IF(D57<>0,((D56-D57)/D57*100)," - ") -> 10.15748031 | E58: -0.8880538864 | F58: -9.589041096 | G58: -16.74982181 | H58: -23.71543827 | I58: -18.40620653
B59: Général | C59: 0 | D59: 0 | E59: 0 | F59: 0 | G59: 0 | H59: 0 | I59: =E59+H59 -> 0
B60: Agricole | C60: 0 | D60: 0 | E60: 0 | F60: 0 | G60: 0 | H60: 0 | I60: =E60+H60 -> 0
A61: Estonie | B61: Minier | C61: 0 | D61: 0 | E61: 0 | F61: 0 | G61: 0 | H61: 0 | I61: =E61+H61 -> 0
B62: Total 2016 | C62: =SUM(C59:C61) -> 0 | D62: 0 | E62: 0 | F62: 0 | G62: 0 | H62: 0 | I62: =IF($E62+$H62=SUM($I59:$I61), $E62+$H62,"FAUX") -> 0
B63: Total 2015 | C63: 0 | D63: 0 | E63: 0 | F63: 1 | G63: 22 | H63: 1373.02 | I63: =E63+H63 -> 1373.02
B64: % d'évolution | C64: =IF(C63<> 0,((C62-C63)/C63*100)," - ") -> - | D64: =IF(D63<>0,((D62-D63)/D63*100)," - ") -> - | E64: - | F64: -100 | G64: -100 | H64: -100 | I64: -100
B65: Général | C65: 0 | D65: 0 | E65: 0 | F65: 0 | G65: 0 | H65: 0 | I65: =E65+H65 -> 0
B66: Agricole | C66: 0 | D66: 0 | E66: 0 | F66: 0 | G66: 0 | H66: 0 | I66: =E66+H66 -> 0
A67: Finlande | B67: Minier | C67: 0 | D67: 0 | E67: 0 | F67: 0 | G67: 0 | H67: 0 | I67: =E67+H67 -> 0
B68: Total 2016 | C68: =SUM(C65:C67) -> 0 | D68: 0 | E68: 0 | F68: 0 | G68: 0 | H68: 0 | I68: =IF($E68+$H68=SUM($I65:$I67), $E68+$H68,"FAUX") -> 0
B69: Total 2015 | C69: 0 | D69: 0 | E69: 0 | F69: 0 | G69: 0 | H69: 0 | I69: =E69+H69 -> 0
B70: % d'évolution | C70: =IF(C69<> 0,((C68-C69)/C69*100)," - ") -> - | D70: =IF(D69<>0,((D68-D69)/D69*100)," - ") -> - | E70: - | F70: - | G70: - | H70: - | I70: -
B71: Général | C71: 1 | D71: 9 | E71: 670.41 | F71: 46 | G71: 496 | H71: 27651.93 | I71: =E71+H71 -> 28322.34
B72: Agricole | C72: 0 | D72: 0 | E72: 0 | F72: 0 | G72: 0 | H72: 0 | I72: =E72+H72 -> 0
A73: Grèce | B73: Minier | C73: 0 | D73: 0 | E73: 0 | F73: 0 | G73: 0 | H73: 0 | I73: =E73+H73 -> 0
B74: Total 2016 | C74: =SUM(C71:C73) -> 1 | D74: 9 | E74: 670.41 | F74: 46 | G74: 496 | H74: 27651.93 | I74: =IF($E74+$H74=SUM($I71:$I73), $E74+$H74,"FAUX") -> 28322.34
B75: Total 2015 | C75: 4 | D75: 42 | E75: 1922.56 | F75: 70 | G75: 787 | H75: 43396 | I75: =E75+H75 -> 45318.56
B76: % d'évolution | C76: =IF(C75<> 0,((C74-C75)/C75*100)," - ") -> -75 | D76: =IF(D75<>0,((D74-D75)/D75*100)," - ") -> -78.57142857 | E76: -65.12930676 | F76: -34.28571429 | G76: -36.97585769 | H76: -36.28000277 | I76: -37.50388362
B77: Général | C77: 27 | D77: 1023 | E77: 37711.08 | F77: 4 | G77: 58 | H77: 2897.83 | I77: =E77+H77 -> 40608.91
B78: Agricole | C78: 0 | D78: 0 | E78: 0 | F78: 0 | G78: 0 | H78: 0 | I78: =E78+H78 -> 0
A79: Hongrie | B79: Minier | C79: 0 | D79: 0 | E79: 0 | F79: 0 | G79: 0 | H79: 0 | I79: =E79+H79 -> 0
B80: Total 2016 | C80: =SUM(C77:C79) -> 27 | D80: 1023 | E80: 37711.08 | F80: 4 | G80: 58 | H80: 2897.83 | I80: =IF($E80+$H80=SUM($I77:$I79), $E80+$H80,"FAUX") -> 40608.91
B81: Total 2015 | C81: 13 | D81: 435 | E81: 17300.34 | F81: 10 | G81: 175 | H81: 6934.67 | I81: =E81+H81 -> 24235.01
B82: % d'évolution | C82: =IF(C81<> 0,((C80-C81)/C81*100)," - ") -> 107.6923077 | D82: =IF(D81<>0,((D80-D81)/D81*100)," - ") -> 135.1724138 | E82: 117.9788374 | F82: -60 | G82: -66.85714286 | H82: -58.21243116 | I82: 67.5630008
B83: Général | C83: 0 | D83: 0 | E83: 0 | F83: 8 | G83: 76 | H83: 5267.25 | I83: =E83+H83 -> 5267.25
B84: Agricole | C84: 0 | D84: 0 | E84: 0 | F84: 0 | G84: 0 | H84: 0 | I84: =E84+H84 -> 0
A85: Irlande | B85: Minier | C85: 0 | D85: 0 | E85: 0 | F85: 0 | G85: 0 | H85: 0 | I85: =E85+H85 -> 0
B86: Total 2016 | C86: =SUM(C83:C85) -> 0 | D86: 0 | E86: 0 | F86: 8 | G86: 76 | H86: 5267.25 | I86: =IF($E86+$H86=SUM($I83:$I85), $E86+$H86,"FAUX") -> 5267.25
B87: Total 2015 | C87: 0 | D87: 0 | E87: 0 | F87: 5 | G87: 37 | H87: 1880.65 | I87: =E87+H87 -> 1880.65
B88: % d'évolution | C88: =IF(C87<> 0,((C86-C87)/C87*100)," - ") -> - | D88: =IF(D87<>0,((D86-D87)/D87*100)," - ") -> - | E88: - | F88: 60 | G88: 105.4054054 | H88: 180.0760375 | I88: 180.0760375
B89: Général | C89: 1 | D89: 23 | E89: 1230 | F89: 1 | G89: 19 | H89: 683.81 | I89: =E89+H89 -> 1913.81
B90: Agricole | C90: 0 | D90: 0 | E90: 0 | F90: 0 | G90: 0 | H90: 0 | I90: =E90+H90 -> 0
A91: Islande | B91: Minier | C91: 0 | D91: 0 | E91: 0 | F91: 0 | G91: 0 | H91: 0 | I91: =E91+H91 -> 0
B92: Total 2016 | C92: =SUM(C89:C91) -> 1 | D92: 23 | E92: 1230 | F92: 1 | G92: 19 | H92: 683.81 | I92: =IF($E92+$H92=SUM($I89:$I91), $E92+$H92,"FAUX") -> 1913.81
B93: =[1]Parametres!$C$2 -> Total 2015 | C93: 0 | D93: 0 | E93: 0 | F93: 0 | G93: 0 | H93: 0 | I93: =E93+H93 -> 0
B94: % d'évolution | C94: =IF(C93<> 0,((C92-C93)/C93*100)," - ") -> - | D94: =IF(D93<>0,((D92-D93)/D93*100)," - ") -> - | E94: - | F94: - | G94: - | H94: - | I94: -
B95: Général | C95: 71 | D95: 4103 | E95: 187528.12 | F95: 181 | G95: 2802 | H95: 160120.69 | I95: =E95+H95 -> 347648.81
B96: Agricole | C96: 1 | D96: 29 | E96: 745.82 | F96: 0 | G96: 0 | H96: 0 | I96: =E96+H96 -> 745.82
A97: Italie | B97: Minier | C97: 0 | D97: 0 | E97: 0 | F97: 0 | G97: 0 | H97: 0 | I97: =E97+H97 -> 0
B98: Total 2016 | C98: =SUM(C95:C97) -> 72 | D98: 4132 | E98: 188273.94 | F98: 181 | G98: 2802 | H98: 160120.69 | I98: =IF($E98+$H98=SUM($I95:$I97), $E98+$H98,"FAUX") -> 348394.63
B99: Total 2015 | C99: 86 | D99: 5712 | E99: 254753.46 | F99: 163 | G99: 2464 | H99: 143107.71 | I99: =E99+H99 -> 397861.17
B100: % d'évolution | C100: =IF(C99<> 0,((C98-C99)/C99*100)," - ") -> -16.27906977 | D100: =IF(D99<>0,((D98-D99)/D99*100)," - ") -> -27.66106443 | E100: -26.09562987 | F100: 11.04294479 | G100: 13.71753247 | H100: 11.88823439 | I100: -12.4331158
B101: Général | C101: 1 | D101: 150 | E101: 6496.72 | F101: 0 | G101: 0 | H101: 0 | I101: =E101+H101 -> 6496.72
B102: Agricole | C102: 0 | D102: 0 | E102: 0 | F102: 0 | G102: 0 | H102: 0 | I102: =E102+H102 -> 0
A103: Lettonie | B103: Minier | C103: 0 | D103: 0 | E103: 0 | F103: 0 | G103: 0 | H103: 0 | I103: =E103+H103 -> 0
B104: Total 2016 | C104: =SUM(C101:C103) -> 1 | D104: 150 | E104: 6496.72 | F104: 0 | G104: 0 | H104: 0 | I104: =IF($E104+$H104=SUM($I101:$I103), $E104+$H104,"FAUX") -> 6496.72
B105: Total 2015 | C105: 0 | D105: 0 | E105: 0 | F105: 0 | G105: 0 | H105: 0 | I105: =E105+H105 -> 0
B106: % d'évolution | C106: =IF(C105<> 0,((C104-C105)/C105*100)," - ") -> - | D106: =IF(D105<>0,((D104-D105)/D105*100)," - ") -> - | E106: - | F106: - | G106: - | H106: - | I106: -
B107: Général | C107: 0 | D107: 0 | E107: 0 | F107: 0 | G107: 0 | H107: 0 | I107: =E107+H107 -> 0
B108: Agricole | C108: 0 | D108: 0 | E108: 0 | F108: 0 | G108: 0 | H108: 0 | I108: =E108+H108 -> 0
A109: Liechtenstein | B109: Minier | C109: 0 | D109: 0 | E109: 0 | F109: 0 | G109: 0 | H109: 0 | I109: =E109+H109 -> 0
B110: Total 2016 | C110: =SUM(C107:C109) -> 0 | D110: 0 | E110: 0 | F110: 0 | G110: 0 | H110: 0 | I110: =IF($E110+$H110=SUM($I107:$I109), $E110+$H110,"FAUX") -> 0
B111: Total 2015 | C111: 0 | D111: 0 | E111: 0 | F111: 0 | G111: 0 | H111: 0 | I111: =E111+H111 -> 0
B112: % d'évolution | C112: =IF(C111<> 0,((C110-C111)/C111*100)," - ") -> - | D112: =IF(D111<>0,((D110-D111)/D111*100)," - ") -> - | E112: - | F112: - | G112: - | H112: - | I112: -
B113: Général | C113: 1 | D113: 29 | E113: 951.03 | F113: 1 | G113: 7 | H113: 524.09 | I113: =E113+H113 -> 1475.12
B114: Agricole | C114: 0 | D114: 0 | E114: 0 | F114: 0 | G114: 0 | H114: 0 | I114: =E114+H114 -> 0
A115: Lituanie | B115: Minier | C115: 0 | D115: 0 | E115: 0 | F115: 0 | G115: 0 | H115: 0 | I115: =E115+H115 -> 0
B116: Total 2016 | C116: =SUM(C113:C115) -> 1 | D116: 29 | E116: 951.03 | F116: 1 | G116: 7 | H116: 524.09 | I116: =IF($E116+$H116=SUM($I113:$I115), $E116+$H116,"FAUX") -> 1475.12
B117: Total 2015 | C117: 0 | D117: 0 | E117: 0 | F117: 0 | G117: 0 | H117: 0 | I117: =E117+H117 -> 0
B118: % d'évolution | C118: =IF(C117<> 0,((C116-C117)/C117*100)," - ") -> - | D118: =IF(D117<>0,((D116-D117)/D117*100)," - ") -> - | E118: - | F118: - | G118: - | H118: - | I118: -
B119: Général | C119: 2 | D119: 12 | E119: 775.66 | F119: 4 | G119: 64 | H119: 3107.03 | I119: =E119+H119 -> 3882.69
B120: Agricole | C120: 0 | D120: 0 | E120: 0 | F120: 0 | G120: 0 | H120: 0 | I120: =E120+H120 -> 0
A121: Luxembourg | B121: Minier | C121: 0 | D121: 0 | E121: 0 | F121: 0 | G121: 0 | H121: 0 | I121: =E121+H121 -> 0
B122: Total 2016 | C122: =SUM(C119:C121) -> 2 | D122: 12 | E122: 775.66 | F122: 4 | G122: 64 | H122: 3107.03 | I122: =IF($E122+$H122=SUM($I119:$I121), $E122+$H122,"FAUX") -> 3882.69
B123: Total 2015 | C123: 1 | D123: 366 | E123: 17890.78 | F123: 4 | G123: 38 | H123: 2176 | I123: =E123+H123 -> 20066.78
B124: % d'évolution | C124: =IF(C123<> 0,((C122-C123)/C123*100)," - ") -> 100 | D124: =IF(D123<>0,((D122-D123)/D123*100)," - ") -> -96.72131148 | E124: -95.66447075 | F124: 0 | G124: 68.42105263 | H124: 42.78630515 | I124: -80.65115579
B125: Général | C125: 0 | D125: 0 | E125: 0 | F125: 3 | G125: 25 | H125: 1211.5 | I125: =E125+H125 -> 1211.5
B126: Agricole | C126: 0 | D126: 0 | E126: 0 | F126: 0 | G126: 0 | H126: 0 | I126: =E126+H126 -> 0
A127: Malte | B127: Minier | C127: 0 | D127: 0 | E127: 0 | F127: 0 | G127: 0 | H127: 0 | I127: =E127+H127 -> 0
B128: Total 2016 | C128: =SUM(C125:C127) -> 0 | D128: 0 | E128: 0 | F128: 3 | G128: 25 | H128: 1211.5 | I128: =IF($E128+$H128=SUM($I125:$I127), $E128+$H128,"FAUX") -> 1211.5
B129: Total 2015 | C129: 0 | D129: 0 | E129: 0 | F129: 3 | G129: 24 | H129: 1354.7 | I129: =E129+H129 -> 1354.7
B130: % d'évolution | C130: =IF(C129<> 0,((C128-C129)/C129*100)," - ") -> - | D130: =IF(D129<>0,((D128-D129)/D129*100)," - ") -> - | E130: - | F130: 0 | G130: 4.166666667 | H130: -10.57060604 | I130: -10.57060604
B131: Général | C131: 0 | D131: 0 | E131: 0 | F131: 0 | G131: 0 | H131: 0 | I131: =E131+H131 -> 0
B132: Agricole | C132: 0 | D132: 0 | E132: 0 | F132: 0 | G132: 0 | H132: 0 | I132: =E132+H132 -> 0
A133: Norvège | B133: Minier | C133: 0 | D133: 0 | E133: 0 | F133: 0 | G133: 0 | H133: 0 | I133: =E133+H133 -> 0
B134: Total 2016 | C134: =SUM(C131:C133) -> 0 | D134: 0 | E134: 0 | F134: 0 | G134: 0 | H134: 0 | I134: =IF($E134+$H134=SUM($I131:$I133), $E134+$H134,"FAUX") -> 0
B135: Total 2015 | C135: 0 | D135: 0 | E135: 0 | F135: 7 | G135: 130 | H135: 9677.29 | I135: =E135+H135 -> 9677.29
B136: % d'évolution | C136: =IF(C135<> 0,((C134-C135)/C135*100)," - ") -> - | D136: =IF(D135<>0,((D134-D135)/D135*100)," - ") -> - | E136: - | F136: -100 | G136: -100 | H136: -100 | I136: -100
B137: Général | C137: 1 | D137: 81 | E137: 5644.8 | F137: 9 | G137: 97 | H137: 3875.41 | I137: =E137+H137 -> 9520.21
B138: Agricole | C138: 0 | D138: 0 | E138: 0 | F138: 0 | G138: 0 | H138: 0 | I138: =E138+H138 -> 0
A139: Pays-Bas | B139: Minier | C139: 0 | D139: 0 | E139: 0 | F139: 0 | G139: 0 | H139: 0 | I139: =E139+H139 -> 0
B140: Total 2016 | C140: =SUM(C137:C139) -> 1 | D140: 81 | E140: 5644.8 | F140: 9 | G140: 97 | H140: 3875.41 | I140: =IF($E140+$H140=SUM($I137:$I139), $E140+$H140,"FAUX") -> 9520.21
B141: Total 2015 | C141: 2 | D141: 13 | E141: 578.78 | F141: 7 | G141: 90 | H141: 7478.99 | I141: =E141+H141 -> 8057.77
B142: % d'évolution | C142: =IF(C141<> 0,((C140-C141)/C141*100)," - ") -> -50 | D142: =IF(D141<>0,((D140-D141)/D141*100)," - ") -> 523.0769231 | E142: 875.2928574 | F142: 28.57142857 | G142: 7.777777778 | H142: -48.18270916 | I142: 18.14943837
B143: Général | C143: 0 | D143: 0 | E143: 0 | F143: 33 | G143: 740 | H143: 40430.74 | I143: =E143+H143 -> 40430.74
B144: Agricole | C144: 38 | D144: 869 | E144: 36492.88 | F144: 6 | G144: 89 | H144: 3816.77 | I144: =E144+H144 -> 40309.65
A145: Pologne | B145: Minier | C145: 0 | D145: 0 | E145: 0 | F145: 0 | G145: 0 | H145: 0 | I145: =E145+H145 -> 0
B146: Total 2016 | C146: =SUM(C143:C145) -> 38 | D146: 869 | E146: 36492.88 | F146: 39 | G146: 829 | H146: 44247.51 | I146: =IF($E146+$H146=SUM($I143:$I145), $E146+$H146,"FAUX") -> 80740.39
B147: Total 2015 | C147: 42 | D147: 1249 | E147: 59477.92 | F147: 62 | G147: 1607 | H147: 78018.7 | I147: =E147+H147 -> 137496.62
B148: % d'évolution | C148: =IF(C147<> 0,((C146-C147)/C147*100)," - ") -> -9.523809524 | D148: =IF(D147<>0,((D146-D147)/D147*100)," - ") -> -30.42433947 | E148: -38.64466007 | F148: -37.09677419 | G148: -48.41319228 | H148: -43.28601989 | I148: -41.27827288
B149: Général | C149: 19 | D149: 480 | E149: 24064.13 | F149: 1211 | G149: 29471 | H149: 1635697.35 | I149: =E149+H149 -> 1659761.48
B150: Agricole | C150: 17 | D150: 861 | E150: 30095.47 | F150: 2 | G150: 57 | H150: 2952.06 | I150: =E150+H150 -> 33047.53
A151: Portugal | B151: Minier | C151: 0 | D151: 0 | E151: 0 | F151: 0 | G151: 0 | H151: 0 | I151: =E151+H151 -> 0
B152: Total 2016 | C152: =SUM(C149:C151) -> 36 | D152: 1341 | E152: 54159.6 | F152: 1213 | G152: 29528 | H152: 1638649.41 | I152: =IF($E152+$H152=SUM($I149:$I151), $E152+$H152,"FAUX") -> 1692809.01
B153: Total 2015 | C153: 34 | D153: 1480 | E153: 58769.79 | F153: 1269 | G153: 32656 | H153: 1716165.16 | I153: =E153+H153 -> 1774934.95
B154: % d'évolution | C154: =IF(C153<> 0,((C152-C153)/C153*100)," - ") -> 5.882352941 | D154: =IF(D153<>0,((D152-D153)/D153*100)," - ") -> -9.391891892 | E154: -7.84448949 | F154: -4.412923562 | G154: -9.578637923 | H154: -4.51680012 | I154: -4.62698309
B155: Général | C155: 0 | D155: 0 | E155: 0 | F155: 7 | G155: 116 | H155: 6306.99 | I155: =E155+H155 -> 6306.99
B156: Agricole | C156: 0 | D156: 0 | E156: 0 | F156: 0 | G156: 0 | H156: 0 | I156: =E156+H156 -> 0
A157: République Tchèque | B157: Minier | C157: 0 | D157: 0 | E157: 0 | F157: 0 | G157: 0 | H157: 0 | I157: =E157+H157 -> 0
B158: Total 2016 | C158: =SUM(C155:C157) -> 0 | D158: 0 | E158: 0 | F158: 7 | G158: 116 | H158: 6306.99 | I158: =IF($E158+$H158=SUM($I155:$I157), $E158+$H158,"FAUX") -> 6306.99
B159: Total 2015 | C159: 0 | D159: 0 | E159: 0 | F159: 5 | G159: 38 | H159: 1822.38 | I159: =E159+H159 -> 1822.38
B160: % d'évolution | C160: =IF(C159<> 0,((C158-C159)/C159*100)," - ") -> - | D160: =IF(D159<>0,((D158-D159)/D159*100)," - ") -> - | E160: - | F160: 40 | G160: 205.2631579 | H160: 246.085339 | I160: 246.085339
B161: Général | C161: 0 | D161: 0 | E161: 0 | F161: 20 | G161: 447 | H161: 24085.17 | I161: =E161+H161 -> 24085.17
B162: Agricole | C162: 1 | D162: 20 | E162: 943 | F162: 1 | G162: 17 | H162: 860.72 | I162: =E162+H162 -> 1803.72
A163: Roumanie | B163: Minier | C163: 0 | D163: 0 | E163: 0 | F163: 0 | G163: 0 | H163: 0 | I163: =E163+H163 -> 0
B164: Total 2016 | C164: =SUM(C161:C163) -> 1 | D164: 20 | E164: 943 | F164: 21 | G164: 464 | H164: 24945.89 | I164: =IF($E164+$H164=SUM($I161:$I163), $E164+$H164,"FAUX") -> 25888.89
B165: Total 2015 | C165: 1 | D165: 45 | E165: 1866.15 | F165: 13 | G165: 293 | H165: 15523.23 | I165: =E165+H165 -> 17389.38
B166: % d'évolution | C166: =IF(C165<> 0,((C164-C165)/C165*100)," - ") -> 0 | D166: =IF(D165<>0,((D164-D165)/D165*100)," - ") -> -55.55555556 | E166: -49.46815636 | F166: 61.53846154 | G166: 58.36177474 | H166: 60.70038259 | I166: 48.87759081
B167: Général | C167: 1 | D167: 392 | E167: 20140.96 | F167: 28 | G167: 197 | H167: 11411.49 | I167: =E167+H167 -> 31552.45
B168: Agricole | C168: 0 | D168: 0 | E168: 0 | F168: 0 | G168: 0 | H168: 0 | I168: =E168+H168 -> 0
A169: Royaume-Uni | B169: Minier | C169: 0 | D169: 0 | E169: 0 | F169: 0 | G169: 0 | H169: 0 | I169: =E169+H169 -> 0
B170: Total 2016 | C170: =SUM(C167:C169) -> 1 | D170: 392 | E170: 20140.96 | F170: 28 | G170: 197 | H170: 11411.49 | I170: =IF($E170+$H170=SUM($I167:$I169), $E170+$H170,"FAUX") -> 31552.45
B171: Total 2015 | C171: 0 | D171: 0 | E171: 0 | F171: 30 | G171: 377 | H171: 26970.76 | I171: =E171+H171 -> 26970.76
B172: % d'évolution | C172: =IF(C171<> 0,((C170-C171)/C171*100)," - ") -> - | D172: =IF(D171<>0,((D170-D171)/D171*100)," - ") -> - | E172: - | F172: -6.666666667 | G172: -47.74535809 | H172: -57.68940141 | I172: 16.98761918
B173: Général | C173: 2 | D173: 109 | E173: 4054.09 | F173: 2 | G173: 33 | H173: 1702.52 | I173: =E173+H173 -> 5756.61
B174: Agricole | C174: 1 | D174: 30 | E174: 1017.31 | F174: 0 | G174: 0 | H174: 0 | I174: =E174+H174 -> 1017.31
A175: Slovaquie | B175: Minier | C175: 0 | D175: 0 | E175: 0 | F175: 0 | G175: 0 | H175: 0 | I175: =E175+H175 -> 0
B176: Total 2016 | C176: =SUM(C173:C175) -> 3 | D176: 139 | E176: 5071.4 | F176: 2 | G176: 33 | H176: 1702.52 | I176: =IF($E176+$H176=SUM($I173:$I175), $E176+$H176,"FAUX") -> 6773.92
B177: Total 2015 | C177: 3 | D177: 213 | E177: 7331.77 | F177: 3 | G177: 125 | H177: 9092.88 | I177: =E177+H177 -> 16424.65
B178: % d'évolution | C178: =IF(C177<> 0,((C176-C177)/C177*100)," - ") -> 0 | D178: =IF(D177<>0,((D176-D177)/D177*100)," - ") -> -34.74178404 | E178: -30.82979963 | F178: -33.33333333 | G178: -73.6 | H178: -81.27633929 | I178: -58.7575991
B179: Général | C179: 0 | D179: 0 | E179: 0 | F179: 1 | G179: 23 | H179: 1261.32 | I179: =E179+H179 -> 1261.32
B180: Agricole | C180: 0 | D180: 0 | E180: 0 | F180: 0 | G180: 0 | H180: 0 | I180: =E180+H180 -> 0
A181: Slovénie | B181: Minier | C181: 0 | D181: 0 | E181: 0 | F181: 0 | G181: 0 | H181: 0 | I181: =E181+H181 -> 0
B182: Total 2016 | C182: =SUM(C179:C181) -> 0 | D182: 0 | E182: 0 | F182: 1 | G182: 23 | H182: 1261.32 | I182: =IF($E182+$H182=SUM($I179:$I181), $E182+$H182,"FAUX") -> 1261.32
B183: Total 2015 | C183: 1 | D183: 48 | E183: 1734.84 | F183: 0 | G183: 0 | H183: 0 | I183: =E183+H183 -> 1734.84
B184: % d'évolution | C184: =IF(C183<> 0,((C182-C183)/C183*100)," - ") -> -100 | D184: =IF(D183<>0,((D182-D183)/D183*100)," - ") -> -100 | E184: -100 | F184: - | G184: - | H184: - | I184: -27.29473611
B185: Général | C185: 0 | D185: 0 | E185: 0 | F185: 2 | G185: 12 | H185: 815.88 | I185: =E185+H185 -> 815.88
B186: Agricole | C186: 0 | D186: 0 | E186: 0 | F186: 0 | G186: 0 | H186: 0 | I186: =E186+H186 -> 0
A187: Suède | B187: Minier | C187: 0 | D187: 0 | E187: 0 | F187: 0 | G187: 0 | H187: 0 | I187: =E187+H187 -> 0
B188: Total 2016 | C188: =SUM(C185:C187) -> 0 | D188: 0 | E188: 0 | F188: 2 | G188: 12 | H188: 815.88 | I188: =IF($E188+$H188=SUM($I185:$I187), $E188+$H188,"FAUX") -> 815.88
B189: Total 2015 | C189: 0 | D189: 0 | E189: 0 | F189: 2 | G189: 24 | H189: 1347.4 | I189: =E189+H189 -> 1347.4
B190: % d'évolution | C190: =IF(C189<> 0,((C188-C189)/C189*100)," - ") -> - | D190: =IF(D189<>0,((D188-D189)/D189*100)," - ") -> - | E190: - | F190: 0 | G190: -50 | H190: -39.44782544 | I190: -39.44782544
B191: Général | C191: 6 | D191: 123 | E191: 6550.55 | F191: 15 | G191: 110 | H191: 4888.51 | I191: =E191+H191 -> 11439.06
B192: Agricole | C192: 0 | D192: 0 | E192: 0 | F192: 0 | G192: 0 | H192: 0 | I192: =E192+H192 -> 0
A193: Suisse | B193: Minier | C193: 0 | D193: 0 | E193: 0 | F193: 0 | G193: 0 | H193: 0 | I193: =E193+H193 -> 0
B194: Total 2016 | C194: =SUM(C191:C193) -> 6 | D194: 123 | E194: 6550.55 | F194: 15 | G194: 110 | H194: 4888.51 | I194: =IF($E194+$H194=SUM($I191:$I193), $E194+$H194,"FAUX") -> 11439.06
B195: Total 2015 | C195: 10 | D195: 94 | E195: 5699.16 | F195: 19 | G195: 185 | H195: 7848.7 | I195: =E195+H195 -> 13547.86
B196: % d'évolution | C196: =IF(C195<> 0,((C194-C195)/C195*100)," - ") -> -40 | D196: =IF(D195<>0,((D194-D195)/D195*100)," - ") -> 30.85106383 | E196: 14.93886818 | F196: -21.05263158 | G196: -40.54054054 | H196: -37.71567266 | I196: -15.56555796
B197: Général | C197: =C11+C17+C23+C29+C35+C41+C47+C53+C59+C65+C71+C77+C83+C89+C95+C101+C107+C113+C119+C125+C131+C137+C143+C149+C155+C161+C167+C173+C179+C185+C191 -> 302 | D197: 18211 | E197: 947263.46 | F197: 2080 | G197: 41729 | H197: 2322755.43 | I197: =IF(I11+I17+I23+I29+I35+I41+I47+I53+I59+I65+I71+I77+I83+I89+I95+I101+I107+I113+I119+I125+I131+I137+I143+I149+I155+I161+I167+I173+I179+I185+I191=E197+H197,E197+H197,"faux") -> 3270018.89
B198: Agricole | C198: 103 | D198: 4866 | E198: 181703.74 | F198: 20 | G198: 453 | H198: 16795.22 | I198: =IF(I12+I18+I24+I30+I36+I42+I48+I54+I60+I66+I72+I78+I84+I90+I96+I102+I108+I114+I120+I126+I132+I138+I144+I150+I156+I162+I168+I174+I180+I186+I192=E198+H198,E198+H198,"faux") -> 198498.96
A199: Total | B199: Minier | C199: 0 | D199: 0 | E199: 0 | F199: 0 | G199: 0 | H199: =H13+H19+H25+H31+H37+H43+H49+H55+H61+H67+H73+H79+H85+H91+H97+H103+H109+H115+H121+H127+H133+H139+H145+H151+H157+H163+H169+H175+H181+H187+H193 -> 0 | I199: =IF(I13+I19+I25+I31+I37+I43+I49+I55+I61+I67+I73+I79+I85+I91+I97+I103+I109+I115+I121+I127+I133+I139+I145+I151+I157+I163+I169+I175+I181+I187+I193=E199+H199,E199+H199,"faux") -> 0
A200: général | B200: Total 2016 | C200: =SUM(C197:C199) -> 405 | D200: 23077 | E200: 1128967.2 | F200: 2100 | G200: 42182 | H200: 2339550.65 | I200: =IF($E200+$H200=SUM($I197:$I199), $E200+$H200,"FAUX") -> 3468517.85
B201: Total 2015 | C201: =C15+C21+C27+C33+C39+C45+C51+C57+C63+C69+C75+C81+C87+C93+C99+C105+C111+C117+C123+C129+C135+C141+C147+C153+C159+C165+C171+C177+C183+C189+C195 -> 425 | D201: 24602 | E201: 1161642.13 | F201: 2252 | G201: =G15+G21+G27+G33+G39+G45+G51+G57+G63+G69+G75+G81+G87+G93+G99+G105+G111+G117+G123+G129+G135+G141+G147+G153+G159+G165+G171+G177+G183+G189+G195 -> 48243 | H201: 2601858.73 | I201: =IF(I15+I21+I27+I33+I39+I45+I51+I57+I63+I69+I75+I81+I87+I93+I99+I105+I111+I117+I123+I129+I135+I141+I147+I153+I159+I165+I171+I177+I183+I189+I195=E201+H201,E201+H201,"faux") -> 3763500.86
B202: % d'évolution | C202: =IF(C201<> 0,((C200-C201)/C201*100)," - ") -> -4.705882353 | D202: =IF(D201<>0,((D200-D201)/D201*100)," - ") -> -6.198683034 | E202: -2.812822397 | F202: -6.74955595 | G202: -12.56348071 | H202: -10.08156504 | I202: -7.83799502

Sheet Paramètres (hidden)
A2: Allemagne | B2: A11
A3: Autriche | B3: A17
A4: Belgique | B4: A23
A5: Bulgarie | B5: A29
A6: Chypre | B6: A35
A7: Croatie | B7: A41
A8: Danemark | B8: A47
A9: Espagne | B9: A53
A10: Estonie | B10: A59
A11: Finlande | B11: A65
A12: Grèce | B12: A71
A13: Hongrie | B13: A77
A14: Irlande | B14: A83
A15: Islande | B15: A89
A16: Italie | B16: A95
A17: Lettonie | B17: A101
A18: Liechtenstein | B18: A107
A19: Lituanie | B19: A113
A20: Luxembourg | B20: A119
A21: Malte | B21: A125
A22: Norvège | B22: A131
A23: Pays-Bas | B23: A137
A24: Pologne | B24: A143
A25: Portugal | B25: A149
A26: République tchèque | B26: A155
A27: Roumanie | B27: A161
A28: Royaume-Uni | B28: A167
A29: Slovaquie | B29: A173
A30: Slovénie | B30: A179
A31: Suède | B31: A185
A32: Suisse | B32: A191
